Cogmind - Beta 14 @@@ ROGUE MODE // 2024.08.22 @ 22:28:54 Player: THN-L0C Result: Destroyed by H-88 Terminator with KE Penetrator Performance ------------- Evolutions (9) 4500 Regions Visited (27) 5400 Robots Destroyed (244) 1220 Value Destroyed (15595) 15595 Prototype IDs (47) 940 Alien Tech Used (2) 400 Bonus (16187) 16187 TOTAL SCORE: 44242 Bonus ------- High Alert Combat Kills 5271 Follower Combat Kills 3741 Entered Garrisons 1400 Used RIF Installer 5000 Entered DSFs 500 Aligned with FarCom 300 Met Zhirov 300 Friendly Fire -325 Cogmind --------- Core Integrity 0/1600 Matter 129/300 Energy 99/100 System Corruption 17% Temperature Cool (0) Movement Core (50) Location -1/Access Parts ------- > --- POWER (3) -------- (None) > --- PROPULSION (7) --- (None) > --- UTILITY (12) ----- Relay Coupler [Sentry] (17) Relay Coupler [Demolisher] (33) > --- WEAPON (3) ------- (None) > --- INVENTORY (5) ---- Light Quantum Reactor Advanced Medium Treads Compact Matter Pod (0) Peak State ------------ > --- POWER ------------ Light Antimatter Reactor Light Quantum Reactor Reinforced Quantum Reactor > --- PROPULSION ------- Armored Heavy Treads Armored Heavy Treads Centrium Leg Centrium Leg Improved Antigrav System > --- UTILITY ---------- Advanced Cryofiber Web Advanced Heat Sink Advanced Cooling System High-capacity Storage Unit Improved Utility Shielding Improved Medium Armor Plating Heavy Insulated Plating Relay Coupler [Sentry] Relay Coupler [Hunter] Relay Coupler [Heavy] Relay Coupler [Behemoth] > --- WEAPON ----------- Multirail Linear Accelerator Advanced Remote Datajack > --- INVENTORY -------- Flexi-carbon Leg Flexi-carbon Leg Myomer Leg Myomer Leg Myomer Leg Myomer Leg Biometal Leg Advanced Heat Sink Advanced Cooling System Advanced Energy Well Compact Matter Pod Improved Core Shielding Relay Coupler [NC] Relay Coupler [Cutter] Relay Coupler [Demolisher] Dimensional Node Initializer Transdimensional Reconstructor KE Penetrator Advanced Remote Datajack [Rating: 180] Favorites ----------- Power Light Antimatter Reactor Engine Light Angular Momentum Engine Power Core Light Nuclear Core Reactor Light Antimatter Reactor Propulsion Flexi-carbon Leg Treads Armored Heavy Treads Leg Flexi-carbon Leg Wheel Wheel Hover Unit Improved Antigrav System Flight Unit Impulse Thruster Array Utility Large Storage Unit Device Experimental Reaction Control System Storage Large Storage Unit Processor Advanced Target Analyzer Hackware Relay Coupler [Heavy] Protection Improved Light Armor Plating Weapon Improved Remote Datajack Energy Gun Enhanced Quantum Rifle Energy Cannon Beam Cannon Ballistic Gun Gauss Rifle Ballistic Cannon Mass Driver Launcher Heavy Missile Launcher Special Weapon Improved Remote Datajack Impact Weapon Flail Slashing Weapon Longsword +1 Piercing Weapon Lance Special Melee Weapon Advanced Datajack Build | -11 -10 -10 -10 -9 -8 -8 -8 -8 -7 -7 -7 -7 -6 -6 -5 -5 -5 -5 -4 -4 -4 -3 -3 -2 -1 -1 -1 ------- Run | Yrd Mat Min Exi Min Mat Gar Mat Gar Fac Gar Fac Gar Fac DSF Fac Upp Upp Zhi Pro Fac Gar Res Gar Res Acc Gar Acc Slots Evolved 18 | . . . . . 4 . . . 2 . . . 2 . 2 . . . . 2 . 2 . 2 2 . . Power 2 | . . . . . . . . . . . . . 1 . . . . . . . . . . 1 . . . Propulsion 5 | . . . . . 2 . . . . . . . . . . . . . . 2 . . . . 1 . . Utility 10 | . . . . . 2 . . . 2 . . . . . 2 . . . . . . 2 . 1 1 . . Weapon 1 | . . . . . . . . . . . . . 1 . . . . . . . . . . . . . . Parts Attached 642 | 7 23 11 2 4 26 34 9 43 52 42 12 43 2 5 23 28 9 12 10 10 54 11 50 8 2 87 23 Power 69 | 1 1 1 1 . 2 2 . 4 1 3 . 1 1 . 3 3 1 1 3 2 6 2 9 1 1 17 2 Engine 5 | 1 . . . . 1 . . . . . . . . . 1 . 1 . . 1 . . . . . . . Core 18 | . 1 1 1 . 1 2 . 4 1 1 . . . . 2 3 . . . . 1 . . . . . . Reactor 46 | . . . . . . . . . . 2 . 1 1 . . . . 1 3 1 5 2 9 1 1 17 2 Propulsion 171 | 2 2 5 . . 6 8 2 11 8 9 2 5 . . 9 9 3 3 5 5 27 1 12 . . 27 10 Treads 34 | 2 2 1 . . 1 . . . . 4 2 5 . . 3 2 1 . . 3 3 . . . . 3 2 Leg 110 | . . 2 . . 2 8 2 11 8 4 . . . . . 6 2 2 5 . 15 1 12 . . 22 8 Wheel 9 | . . 2 . . 2 . . . . . . . . . . 1 . 1 . 2 1 . . . . . . Hover 13 | . . . . . 1 . . . . . . . . . 3 . . . . . 7 . . . . 2 . Flight 5 | . . . . . . . . . . 1 . . . . 3 . . . . . 1 . . . . . . Utility 231 | 2 12 4 . 4 10 10 4 17 23 19 5 19 1 3 6 6 5 8 2 3 14 7 15 4 1 24 3 Device 84 | 1 5 2 . 2 2 5 2 8 8 7 1 9 . 1 4 2 3 4 1 1 3 1 2 1 . 9 . Storage 9 | 1 1 . . . . . . . . . . 1 . 1 . 1 . 2 . . 2 . . . . . . Processor 13 | . . . . . 2 . . . 3 . . . . . 1 1 1 . . 1 2 2 . . . . . Hackware 46 | . . . . . . . 1 3 2 1 1 1 1 . 1 . . . . 1 3 3 13 2 1 9 3 Protection 79 | . 6 2 . 2 6 5 1 6 10 11 3 8 . 1 . 2 1 2 1 . 4 1 . 1 . 6 . Artifact . | . . . . . . . . . . . . . . . . . . . . . . . . . . . . Weapon 171 | 2 8 1 1 . 8 14 3 11 20 11 5 18 . 2 5 10 . . . . 7 1 14 3 . 19 8 Energy Gun 22 | 1 . . . . 3 2 1 . . . . . . 1 . 1 . . . . 2 . 2 1 . 8 . Energy Cannon 7 | . 2 . . . . 1 . . . . . . . . . . . . . . . . 2 1 . . 1 Ballistic Gun 36 | 1 1 . . . . 1 . 1 9 2 . 8 . . 1 4 . . . . 3 . 2 . . 3 . Ballistic Cannon 32 | . 1 1 . . 3 3 1 3 . 3 3 4 . 1 2 . . . . . . . 3 . . 2 2 Launcher 16 | . 2 . 1 . 1 2 . 2 2 3 1 2 . . . . . . . . . . . . . . . Special Weapon 31 | . 2 . . . . 1 1 4 3 1 1 1 . . 1 1 . . . . 2 . 3 1 . 4 5 Impact Weapon 1 | . . . . . 1 . . . . . . . . . . . . . . . . . . . . . . Slashing Weapon 15 | . . . . . . 2 . . 2 1 . 2 . . 1 4 . . . . . . 1 . . 2 . Piercing Weapon 9 | . . . . . . 2 . 1 4 1 . 1 . . . . . . . . . . . . . . . Special Melee Weapon 2 | . . . . . . . . . . . . . . . . . . . . . . 1 1 . . . . Unidentified Prototypes 12 | . . . . . 1 . 1 . 1 . . 1 . . . . . 5 . . 2 . . . . . 1 Corrupted Parts 1 | . . . . . . . . . . . . . . . . . . . . . . . . . . 1 . System Corruption 1 | . . . . . . . . . . . . . . . . . . . . . . . . . . 1 . Parts Lost 173 | . . . . . 6 8 . 9 2 5 1 6 . 1 16 11 1 . 12 1 19 4 9 4 . 35 23 Power 33 | . . . . . 1 . . . . 1 . . . . 3 2 . . 4 . 5 1 1 . . 11 4 Propulsion 51 | . . . . . 1 3 . 4 . 3 . 1 . . 5 3 . . 4 1 9 . 2 . . 6 9 Utility 63 | . . . . . 3 5 . 4 1 1 . 3 . 1 5 4 . . 4 . 5 3 5 2 . 11 6 Weapon 26 | . . . . . 1 . . 1 1 . 1 2 . . 3 2 1 . . . . . 1 2 . 7 4 Highest Loss Streak 13 | . . . . . 5 3 . 6 1 2 1 2 . 1 8 4 1 . 6 1 12 3 3 2 . 13 10 To Critical Strikes 1 | . . . . . . . . . . . . . . . . . . . . . . . . . . 1 . Average Slot Usage (%) 91 | . 98 100 100 100 94 97 99 97 99 92 91 85 73 71 61 82 92 88 84 84 84 96 96 93 84 88 76 Core 3 | . 9 14 14 14 5 9 9 9 7 . . . . . 2 5 5 5 3 . 1 . . . . . . Reactor 4 | . . . . . . . . . . 5 7 7 6 8 . . . 2 6 2 5 8 7 13 12 11 8 Treads 6 | . 27 14 . . 6 . . . . 13 23 18 13 13 2 2 . . . 7 2 . . . . 5 . Leg 18 | . . 7 28 28 20 33 36 34 29 9 . . . . . 16 23 23 22 20 22 28 27 26 24 14 20 Device 8 | . 10 9 . 14 6 8 6 10 10 5 . 10 13 7 15 10 13 16 8 7 5 4 2 7 8 11 6 Storage 6 | . 14 14 14 14 9 9 9 9 7 7 7 7 6 6 5 8 5 5 5 5 4 4 4 4 4 4 3 Processor 6 | . . . . . 3 . . . 4 15 15 14 6 4 . 8 12 11 11 14 10 14 11 . . . . Hackware 8 | . . . . . . . 1 2 11 7 10 1 6 13 13 5 1 . . 1 3 5 21 28 28 23 24 Protection 9 | . 3 4 14 . 17 16 19 14 10 8 11 10 6 6 3 5 10 11 16 10 13 13 4 3 . 6 4 Ballistic Gun 4 | . 13 14 14 . . . . 5 9 7 7 8 6 2 1 4 5 . . . 1 . . . . 2 . Ballistic Cannon 3 | . 6 14 14 14 6 7 9 2 . 1 4 2 . 1 . . . . . . . . 2 . . 3 1 Launcher 1 | . 1 . . 14 5 2 . 2 1 4 . . . . . . . . . . . . . . . . . Special Weapon 1 | . . . . . . . 4 4 1 . 2 . 6 1 . 1 . . . . 2 4 5 3 4 1 1 Slashing Weapon 1 | . . . . . . . . . . . . 1 . . . 2 5 5 5 5 5 4 1 . . . . Peak Build Rating 180 | 6 10 15 16 16 33 50 46 47 58 68 66 78 82 92 91 81 87 91 88 103 122 135 157 165 153 180 171 Average Rating 80 | 4 9 11 15 16 22 41 44 39 53 63 64 69 77 84 59 68 82 87 84 93 104 127 130 151 149 163 131 On Entrance 71 | . 6 10 15 16 16 30 43 43 47 53 66 65 77 82 78 65 78 87 85 70 98 112 131 157 149 150 167 Naked Turns 27 | . . . . . . . . . . . . . . . . . . . . . . . . . . . 27 Heaviest Build 149 | 12 33 33 34 34 37 67 65 59 53 61 61 77 78 94 78 83 83 83 66 54 86 88 105 125 109 149 140 Greatest Support 195 | 40 40 40 30 30 47 62 57 57 65 118 118 135 135 135 135 75 75 75 95 95 130 130 170 170 170 195 189 Greatest Overweight (x) 6 | . 5 3 1 1 3 1 1 5 . 2 . 1 . . 6 5 1 1 1 . 1 . . . . 2 1 Average Overweight (x) . | . . 1 1 1 . . . . . . . . . . 1 . . . . . . . . . . . . Largest Inventory Capacity 20 | 8 15 15 15 15 15 15 15 15 15 15 15 15 15 20 20 20 20 20 15 15 20 20 20 20 20 20 20 Average Capacity 16 | 7 11 15 15 15 15 15 15 15 15 15 15 15 15 15 20 20 20 19 15 15 16 20 20 20 20 20 18 Most Carried 20 | 3 14 15 15 15 15 15 15 15 15 15 15 15 15 15 20 12 16 20 15 15 20 20 20 20 15 20 20 Average Carried 15 | 1 8 14 14 14 12 14 14 14 14 14 14 14 14 12 13 9 13 18 14 12 16 19 19 14 13 18 16 Final Capacity 20 | 8 15 15 15 15 15 15 15 15 15 15 15 15 15 20 20 20 20 15 15 15 20 20 20 20 20 20 5 Final Carried 20 | 3 14 15 15 15 15 15 15 15 15 15 15 15 14 14 7 12 16 15 13 14 20 19 20 14 13 20 3 Class Distribution -------------------- 32% | Scavenger-Mutant 23% | Mutant 18% | Bothacker-Mutant 10% | Botlord-Mutant 5% | Botlord-Skirmisher 4% | Botlord-Tank Dominant Class ---------------- Mutant | -10/Materials Mutant | -10/Mines Mutant | -10/Exiles Mutant | -9/Mines Scavenger-Mutant | -8/Materials Mutant | -8/Garrison Mutant | -8/Materials Scavenger-Mutant | -8/Garrison Bothacker-Mutant | -7/Factory Bothacker-Mutant | -7/Garrison Bothacker-Mutant | -7/Factory Mutant | -7/Garrison Bothacker-Mutant | -6/Factory Bothacker-Skirmisher | -6/DSF Bothacker-Mutant | -5/Factory Scavenger-Mutant | -5/Upper Caves Scavenger-Mutant | -5/Upper Caves Scavenger-Mutant | -5/Zhirov Scavenger-Mutant | -4/Proximity Caves Scavenger-Mutant | -4/Factory Scavenger-Mutant | -4/Garrison Scavenger-Mutant | -3/Research Botlord-Mutant | -3/Garrison Botlord-Mutant | -2/Research Botlord-Mutant | -1/Access Botlord-Tank | -1/Garrison Botlord-Skirmisher | -1/Access Resources | -11 -10 -10 -10 -9 -8 -8 -8 -8 -7 -7 -7 -7 -6 -6 -5 -5 -5 -5 -4 -4 -4 -3 -3 -2 -1 -1 -1 ----------- Run | Yrd Mat Min Exi Min Mat Gar Mat Gar Fac Gar Fac Gar Fac DSF Fac Upp Upp Zhi Pro Fac Gar Res Gar Res Acc Gar Acc Matter Collected 14639 | 219 236 591 . 50 408 1285 275 1649 951 926 366 1187 . 137 370 465 96 84 115 . 909 69 1117 206 102 2346 480 Remotely 1284 | . . . . . . . . 107 167 383 50 577 . . . . . . . . . . . . . . . Salvage Created 12812 | 82 251 137 . . 234 574 199 647 565 937 600 1758 . 359 418 798 529 417 266 . 1389 342 410 35 38 1711 116 Parts 563 | 3 18 4 . . 19 28 10 46 15 47 31 71 . 9 27 28 13 2 20 . 56 8 23 3 . 71 11 Haulers Intercepted 3 | . 1 . . . . . . . 1 1 . . . . . . . . . . . . . . . . . Recyclers Shooed 1 | . . . . . . . . . 1 . . . . . . . . . . . . . . . . . . Parts Field Recycled 28 | . . . . . . . . . . 28 . . . . . . . . . . . . . . . . . Retrieved Matter 185 | . . . . . . . . . . 185 . . . . . . . . . . . . . . . . . Parts Self-Destructed 58 | . . . . . . . . . . . . . . . . 13 22 1 22 . . . . . . . . Prevented . | . . . . . . . . . . . . . . . . . . . . . . . . . . . . Kills | -11 -10 -10 -10 -9 -8 -8 -8 -8 -7 -7 -7 -7 -6 -6 -5 -5 -5 -5 -4 -4 -4 -3 -3 -2 -1 -1 -1 ------- Run | Yrd Mat Min Exi Min Mat Gar Mat Gar Fac Gar Fac Gar Fac DSF Fac Upp Upp Zhi Pro Fac Gar Res Gar Res Acc Gar Acc Combat Hostiles Destroyed 267 | . 7 7 . . 6 49 4 27 11 26 10 29 . 5 11 9 2 . 7 . 19 4 7 1 1 23 2 Melee 53 | . . . . . . 7 . 1 . . . . . . 1 7 2 . 7 . 18 4 6 . . . . Guns 80 | . 2 2 . . 1 3 . 5 7 10 7 14 . 4 4 2 . . . . 1 . . 1 1 16 . Cannons 85 | . 4 5 . . 5 20 4 12 . 6 1 11 . 1 6 . . . . . . . 1 . . 7 2 AOE 49 | . 1 . . . . 19 . 9 4 10 2 4 . . . . . . . . . . . . . . . Classes Destroyed 21 | 2 4 1 . . 3 2 . 2 1 . . . . 1 . 1 . . 1 . 2 . 1 . . . . Worker 7 | . 1 . . . 2 . 1 . . . . . . . 1 . . . . . . 1 . . . . 1 Tunneler 2 | 1 . . . . . . . . 1 . . . . . . . . . . . . . . . . . . Hauler 3 | . 1 . . . . . . . 1 1 . . . . . . . . . . . . . . . . . Recycler 3 | 1 . . . . 1 . . . . . 1 . . . . . . . . . . . . . . . . Mechanic 2 | . . . . . 1 . . . . . 1 . . . . . . . . . . . . . . . . Drone 1 | . . . . . . . . . . . . . . . . . . . 1 . . . . . . . . Watcher 2 | . . . . . . . . 2 . . . . . . . . . . . . . . . . . . . Swarmer 41 | . 2 . . . . 3 . 9 . 7 . 7 . . 4 . . . 4 . . . . 1 1 3 . Cutter 8 | . . . . . . 2 . . . 3 . 3 . . . . . . . . . . . . . . . Saboteur 1 | . . . . . . . . . . . . . . . . . . . . . . . 1 . . . . Grunt 80 | . 5 2 . . 4 2 2 10 4 10 4 5 . 4 4 3 . . . . 10 2 . . . 9 . Brawler 7 | . . . . . . . . . 1 . 1 1 . . . 1 . . . . . 1 1 . . 1 . Duelist 4 | . . . . . . . . 2 2 . . . . . . . . . . . . . . . . . . Sentry 34 | . . . . . 1 4 2 2 1 5 3 8 . . . 1 1 . 1 . 3 . . . . 2 . Hunter 11 | . . . . . 1 . . 2 . 1 1 2 . . . 3 . . 1 . . . . . . . . Programmer 33 | . . . . . . 1 . 2 3 . 1 3 . . 3 1 1 . . . 3 1 5 . . 7 2 Heavy 1 | . . . . . . . . . . . . . . 1 . . . . . . . . . . . . . Behemoth 2 | . . . . . . . . . . . . . . . . . . . . . 1 . . . . 1 . Striker 2 | . . . . . . . . . . . . . . . . . . . . . 2 . . . . . . Decomposer 3 | . . . . . . . . . . . . . . . . 2 1 . . . . . . . . . . Samaritan 2 | . . . . . . . . . . . . . . . . 1 1 . . . . . . . . . . Assembled 42 | . . 5 . . . 37 . . . . . . . . . . . . . . . . . . . . . Best Kill Streak 17 | 2 3 2 . . 4 17 2 4 4 6 5 6 . 2 4 4 1 . 4 . 4 3 3 1 1 3 2 Combat Bots Only 17 | . 2 2 . . 1 17 1 4 4 6 4 6 . 2 4 4 1 . 4 . 4 3 3 1 1 3 2 Max Kills in Single Turn 4 | 1 2 1 . . 1 2 1 3 1 3 4 2 . 1 1 1 1 . 1 . 1 1 1 1 1 1 1 Gunslinging . | . . . . . . . . . . . . . . . . . . . . . . . . . . . . Exploded 3 | . 1 . . . . 2 . 3 1 3 2 2 . . . . . . . . . . . . . . . Melee 1 | . . . . . . 1 . 1 . . . . . . 1 1 1 . 1 . 1 1 1 . . . . Uniques/NPCs Destroyed . | . . . . . . . . . . . . . . . . . . . . . . . . . . . . Combat | -11 -10 -10 -10 -9 -8 -8 -8 -8 -7 -7 -7 -7 -6 -6 -5 -5 -5 -5 -4 -4 -4 -3 -3 -2 -1 -1 -1 -------- Run | Yrd Mat Min Exi Min Mat Gar Mat Gar Fac Gar Fac Gar Fac DSF Fac Upp Upp Zhi Pro Fac Gar Res Gar Res Acc Gar Acc Hostile Shots Fired 2930 | . 28 18 . . 110 156 6 135 123 201 104 319 . 44 135 143 16 . 107 . 210 57 85 51 7 475 400 Missed 1020 | . 13 4 . . 26 52 1 34 41 56 27 83 . 8 33 40 7 . 32 . 61 32 40 27 4 221 178 Damage Taken 34405 | . 165 243 . . 1262 1732 81 1409 1119 1666 763 2161 . 1094 1908 1787 196 . 1293 236 3688 583 1400 702 233 5532 5152 Core 4706 | . 30 53 . . 194 48 . 123 117 187 45 226 . 218 212 301 . . 70 162 947 105 103 66 . 476 1023 Absorbed by Shields 508 | . . . . . . . 7 156 44 . . 97 . . 32 . . . . . . . . . . 172 . Reduced by Siege Mode 513 | . . . . . . . . . . 132 40 132 . 84 70 5 . . . . . . . . . 50 . Redirected to Shielding 861 | . . . . . 86 16 . 106 104 . . . . . . 34 5 . 31 . 233 . 20 60 . 57 109 Ignored by Resistances 16 | . . . . . . . . . 16 . . . . . . . . . . . . . . . . . . Core Remaining (%) 57 | 100 . . . 66 . . . 33 . . . 17 . 74 . . . . 41 . 3 . 84 95 . . . Volleys Fired 1078 | 12 25 16 . . 61 93 18 135 75 89 34 87 . 7 27 21 1 . . . 39 1 64 22 11 182 58 Largest 3 | 1 2 2 . . 2 1 1 2 2 2 2 2 . 1 2 3 1 . . . 1 1 1 2 1 3 3 Hottest 205 | 20 100 55 . . 119 63 57 87 56 81 81 81 . 75 108 131 28 . . . 75 7 120 185 75 205 196 Shots Fired 1377 | 12 41 32 . . 82 94 20 136 93 107 49 134 . 27 30 50 1 . . . 39 1 67 25 11 257 69 Gun 647 | 12 22 16 . . 10 9 . 33 77 67 29 86 . 20 13 48 1 . . . 25 . 2 9 4 148 16 Cannon 459 | . 12 16 . . 70 54 13 64 . 20 17 42 . 7 16 . . . . . . . 30 2 . 66 30 Launcher 64 | . 4 . . . 2 21 . 9 5 17 1 5 . . . . . . . . . . . . . . . Special 207 | . 3 . . . . 10 7 30 11 3 2 1 . . 1 2 . . . . 14 1 35 14 7 43 23 Kinetic 948 | 12 30 32 . . 70 62 13 97 77 87 46 128 . 7 29 35 1 . . . 22 . 29 . . 142 29 Thermal 136 | . 7 . . . 10 1 . . . . . . . 20 . 13 . . . . . . 3 6 . 59 17 Explosive 64 | . 4 . . . 2 21 . 9 5 17 1 5 . . . . . . . . . . . . . . . Electromagnetic 25 | . . . . . . . . . . . . . . . . . . . . . 3 . . 5 4 13 . Robot Hit Streak 21 | 6 9 6 . . 7 7 9 14 16 21 16 17 . 14 6 15 . . . . 7 8 12 5 3 20 7 Robot Miss Streak 9 | 1 4 3 . . 2 6 1 3 3 2 3 9 . 7 2 6 . . . . 2 . 5 3 3 3 2 Penetration Max 1 | . . . . . . 1 . 1 1 1 1 1 . . . . . . . . . . . . . 1 . Secondary Targets 1 | . . . . . . . . . . . . . . . . . . . . . . . . . . 1 . Max Gunslinging Chain 1 | . . . . . . . . . . . . . . . . . . . . . . . . . . 1 . Autonomous 20 | . . . . . . . . . . . . . . 20 . . . . . . . . . . . . . Shots Hit Robots 1080 | 10 20 20 . . 53 54 12 85 62 70 32 116 . 21 29 66 13 7 12 . 103 26 38 13 6 180 32 Core Hits 538 | 3 13 12 . . 22 65 5 37 35 50 22 75 . 16 15 20 7 3 8 . 31 9 7 1 1 76 5 Critical Kills 8 | . . . . . . . . . . 2 1 4 . . 1 . . . . . . . . . . . . Critical Parts Destroyed 8 | . . . . . . . . 1 3 1 . . . . 1 . . . . . . . . . . 2 . Critical Strikes 89 | . 2 . . . 4 3 1 4 3 6 4 12 . . 6 5 1 . 3 . 17 10 2 . . 4 2 Destroy 18 | . . . . . . . . 1 3 3 2 4 . . 2 . . . . . . . . . . 3 . Blast 26 | . 2 . . . 4 . 1 3 . 3 2 6 . . 2 . . . . . . . . . . 1 2 Sever 40 | . . . . . . . . . . . . . . . 2 5 1 . 3 . 17 10 2 . . . . Impale 5 | . . . . . . 3 . . . . . 2 . . . . . . . . . . . . . . . Melee Attacks 369 | . . . . . 1 42 . 4 20 8 . 18 . . 11 37 14 7 16 8 116 33 19 . . 15 . Thermal 19 | . . . . . . . . . . . . . . . . . . . . . . . 4 . . 15 . Impact 1 | . . . . . 1 . . . . . . . . . . . . . . . . . . . . . . Slashing 280 | . . . . . . 5 . . 3 6 . 10 . . 11 37 14 7 16 8 116 33 14 . . . . Piercing 68 | . . . . . . 37 . 4 17 2 . 8 . . . . . . . . . . . . . . . Sneak Attacks 11 | . . . . . . . . . . . . . . . . 4 2 . . . 2 1 2 . . . . Combat Hostiles 5 | . . . . . . . . . . . . . . . . 1 . . . . 2 . 2 . . . . Follow-up Attacks 1 | . . . . . . . . . . . . 1 . . . . . . . . . . . . . . . Damage Inflicted 36677 | 127 429 301 . . 1079 2927 224 2768 1948 2708 1079 4209 . 1466 1588 2410 913 709 547 . 4199 1190 776 103 22 4358 597 Guns 11290 | 127 155 141 . . 117 133 . 576 1366 1084 657 1279 . 968 241 675 . . . . 16 . . 103 22 3298 332 Cannons 8852 | . 167 160 . . 818 1209 224 1451 . 453 233 1243 . 490 984 . . . . . . . 120 . . 1060 240 Explosions 4262 | . 107 . . . 144 1108 . 646 582 1171 189 315 . . . . . . . . . . . . . . . Melee 12186 | . . . . . . 477 . 95 . . . 1372 . . 363 1735 913 709 547 . 4147 1190 638 . . . . Ramming 87 | . . . . . . . . . . . . . . 8 . . . . . . 36 . 18 . . . 25 Kinetic 16739 | 127 288 301 . . 818 1342 224 2027 1366 1537 890 2522 . 490 1225 441 . . . . . . 120 . . 2781 240 Thermal 3192 | . 34 . . . 117 . . . . . . . . 968 . 234 . . . . . . . 31 . 1476 332 Explosive 4262 | . 107 . . . 144 1108 . 646 582 1171 189 315 . . . . . . . . . . . . . . . Electromagnetic 211 | . . . . . . . . . . . . . . . . . . . . . 16 . . 72 22 101 . Impact . | . . . . . . . . . . . . . . . . . . . . . . . . . . . . Slashing 11105 | . . . . . . . . . . . . 863 . . 363 1735 913 709 547 . 4147 1190 638 . . . . Piercing 1081 | . . . . . . 477 . 95 . . . 509 . . . . . . . . . . . . . . . Highest Corruption 27 | . . . . . . 6 6 6 3 . . . . . 4 4 4 . . . 3 8 27 1 . 13 17 Average Corruption 8 | . . . . . . 5 6 6 1 . . . . . 1 4 3 . . . 2 7 24 1 . 10 15 Corruption Purged 7 | . . . . . . . . . 3 . . . . . . . 4 . . . . . . . . . . Corruption Blocked 6 | . . . . . . . . . . . . . . . . 3 . . . 2 1 . . . . . . Effects 587 | . . . . . . 16 32 76 19 . . . . . 8 33 6 . . . 65 8 136 2 . 151 35 Message Errors 140 | . . . . . . 3 10 15 2 . . . . . 2 9 3 . . . 21 2 33 . . 38 2 Matter Fused 135 | . . . . . . 6 9 20 4 . . . . . 2 8 1 . . . 18 2 27 . . 30 8 Heat Flow Errors 69 | . . . . . . . 3 12 3 . . . . . 1 1 . . . . 6 2 18 . . 18 5 Energy Discharges 64 | . . . . . . 2 2 8 3 . . . . . 1 4 . . . . 4 1 17 . . 18 4 Parts Rejected 9 | . . . . . . 1 . . . . . . . . . . . . . . 1 . . . . 4 3 Parts Fused 9 | . . . . . . . . 1 2 . . . . . . . . . . . 2 . 1 . . 3 . Data Loss (minor) 70 | . . . . . . 2 3 4 1 . . . . . 2 5 2 . . . 6 . 17 1 . 23 4 Data Loss (major) 38 | . . . . . . 1 1 7 1 . . . . . . 2 . . . . 4 1 13 . . 8 . Misfires 20 | . . . . . . 1 2 4 2 . . . . . . 1 . . . . . . 3 . . 6 1 Alerts 17 | . . . . . . . 2 1 . . . . . . . 2 . . . . 3 . 6 1 . 2 . Misdirections 7 | . . . . . . . . . . . . . . . . . . . . . . . 1 . . . 6 Weapon Failures 9 | . . . . . . . . 4 1 . . . . . . 1 . . . . . . . . . 1 2 Overload Shots . | . . . . . . . . . . . . . . . . . . . . . . . . . . . . Overflow Damage 1340 | . 4 1 . . 3 96 . 61 6 17 . 153 . . 13 154 279 263 11 . 146 42 91 . . . . Projectiles 221 | . . 1 . . 3 61 . 30 . 1 . 125 . . . . . . . . . . . . . . . Explosions 79 | . 4 . . . . 25 . . 6 16 . 28 . . . . . . . . . . . . . . . Melee 1040 | . . . . . . 10 . 31 . . . . . . 13 154 279 263 11 . 146 42 91 . . . . Knockbacks 63 | . . 3 . . 14 7 . 9 . 2 . 8 . . 5 . . . . . . . . . . 13 2 Impact . | . . . . . . . . . . . . . . . . . . . . . . . . . . . . Kinetic 58 | . . 3 . . 13 7 . 8 . 2 . 7 . . 4 . . . . . . . . . . 12 2 Secondary 5 | . . . . . 1 . . 1 . . . 1 . . 1 . . . . . . . . . . 1 . Self-Inflicted Damage 359 | . . . . . 18 118 . 8 36 167 . . . . . . . . . . . . . . . . 12 Shots 13 | . . . . . 2 4 . 1 2 4 . . . . . . . . . . . . . . . . . Rammed 4 | . . . . . . . . . . . . . . 2 . . . . . . . . . . . . 2 Targets Rammed 6 | . . . . . . . . . . . . . . 2 . . . . . . 1 . 1 . . . 2 Kicked 2 | . . . . . . . . . . . . . . . . . . . . . 1 . 1 . . . . Crushed . | . . . . . . . . . . . . . . . . . . . . . . . . . . . . Highest Temperature 640 | . 56 75 . . 246 156 226 317 132 363 222 327 . 584 299 332 . . 4 . 274 215 276 640 . 254 239 Average Temperature 93 | . 20 32 . . 125 41 61 102 51 116 66 65 . 291 158 161 . . 4 . 61 93 86 227 . 108 92 Received Heat Transfer 5466 | . 27 57 . . 729 181 36 213 208 471 264 407 . 207 348 207 27 . 60 . 466 73 90 415 27 395 558 Effects 24 | . . . . . . . . 3 . 1 . 3 . 8 . . . . . . 2 . . 7 . . . Shutdowns 2 | . . . . . . . . . . . . . . . . . . . . . . . . 2 . . . Energy Bleed 3 | . . . . . . . . . . . . 2 . . . . . . . . . . . 1 . . . Interference 8 | . . . . . . . . 3 . . . 1 . 2 . . . . . . 2 . . . . . . Matter Decay 2 | . . . . . . . . . . . . . . . . . . . . . . . . 2 . . . Short Circuit 3 | . . . . . . . . . . . . . . 2 . . . . . . . . . 1 . . . Damage (minor) 5 | . . . . . . . . . . 1 . . . 3 . . . . . . . . . 1 . . . Damage (core) 1 | . . . . . . . . . . . . . . 1 . . . . . . . . . . . . . Siege Activations 28 | . . . . . . . . . . 4 2 10 . 2 3 1 . . . . . . . . . 6 . Total Turns 587 | . . . . . . . . . . 165 28 263 . 31 22 2 . . . . . . . . . 76 . Longest Duration 103 | . . . . . . . . . . 72 17 103 . 17 15 2 . . . . . . . . . 25 . Robots Corrupted . | . . . . . . . . . . . . . . . . . . . . . . . . . . . . Combat Hostiles . | . . . . . . . . . . . . . . . . . . . . . . . . . . . . Parts Fried . | . . . . . . . . . . . . . . . . . . . . . . . . . . . . Impact Corruptions . | . . . . . . . . . . . . . . . . . . . . . . . . . . . . Robots Melted . | . . . . . . . . . . . . . . . . . . . . . . . . . . . . Combat Hostiles . | . . . . . . . . . . . . . . . . . . . . . . . . . . . . Parts Melted 6 | . . . . . . . . . . . . . . . . 1 . . . . . . . . . 5 . Heat Transferred 3475 | . 74 . . . 259 . . . . . . . . 850 . 370 . . . . . . . 37 . 1515 370 Parts Sabotaged . | . . . . . . . . . . . . . . . . . . . . . . . . . . . . Parts Stolen . | . . . . . . . . . . . . . . . . . . . . . . . . . . . . Parts Stripped . | . . . . . . . . . . . . . . . . . . . . . . . . . . . . Power Chain Reactions . | . . . . . . . . . . . . . . . . . . . . . . . . . . . . Alert | -11 -10 -10 -10 -9 -8 -8 -8 -8 -7 -7 -7 -7 -6 -6 -5 -5 -5 -5 -4 -4 -4 -3 -3 -2 -1 -1 -1 ------- Run | Yrd Mat Min Exi Min Mat Gar Mat Gar Fac Gar Fac Gar Fac DSF Fac Upp Upp Zhi Pro Fac Gar Res Gar Res Acc Gar Acc Peak Influence 3260 | 10 86 93 . . 148 1040 554 1964 1337 2494 1490 3260 1711 1317 847 . . . . 511 2229 1289 2104 1352 798 2453 1471 Initial 1711 | . 6 28 . . . 7 507 223 1031 828 1309 1043 1711 1197 690 . . . . 496 252 1253 922 1183 765 476 1471 Average 1048 | 2 39 50 . . 30 464 421 1029 1162 1512 1361 2010 1711 1251 726 . . . . 448 910 1224 1291 1292 747 1149 1291 Maximum Alert Level 5 | . . . . . . 3 2 5 4 5 4 5 5 4 3 . . . . 2 5 4 5 4 3 5 4 Low Security (%) 12 | 100 100 100 . 100 100 14 . . . . . . . . . . . . . . . . . . . . . Level 1 9 | . . . . . . 35 48 12 . . . . . . . . . . . 36 28 . . . . 8 . Level 2 12 | . . . . . . 30 51 9 . . . . . . 26 . . . . 63 26 . . . 18 28 . Level 3 18 | . . . . . . 20 . 40 21 12 . 6 . . 73 . . . . . 13 8 40 . 81 19 20 Level 4 28 | . . . . . . . . 22 78 57 100 27 . 100 . . . . . . 12 91 35 100 . 14 79 Level 5 19 | . . . . . . . . 14 . 30 . 65 100 . . . . . . . 19 . 23 . . 28 . High Security . | . . . . . . . . . . . . . . . . . . . . . . . . . . . . Max Security . | . . . . . . . . . . . . . . . . . . . . . . . . . . . . Squads Dispatched 41 | . 2 . . . . . . . 12 . 4 . . 1 4 . . . . . . 3 . 1 3 . 11 Investigation 3 | . 1 . . . . . . . 2 . . . . . . . . . . . . . . . . . . Extermination 9 | . . . . . . . . . 4 . 1 . . . 1 . . . . . . 1 . . . . 2 Reinforcement 13 | . 1 . . . . . . . 4 . . . . 1 1 . . . . . . 1 . 1 1 . 3 Assault 12 | . . . . . . . . . 2 . 1 . . . 2 . . . . . . 1 . . . . 6 Garrison 4 | . . . . . . . . . . . 2 . . . . . . . . . . . . . 2 . . Intercept . | . . . . . . . . . . . . . . . . . . . . . . . . . . . . Searches Triggered 1 | . . . . . . . . . . . . . . . . . . . . 1 . . . . . . . Construction Impeded 1 | . . . . . . . . . 1 . . . . . . . . . . . . . . . . . . Haulers Reinforced 3 | . . . . . . . . . 2 . . . . . . . . . . . . . . . . . 1 Active Scanning Responses . | . . . . . . . . . . . . . . . . . . . . . . . . . . . . Cargo Convoy Interrupts . | . . . . . . . . . . . . . . . . . . . . . . . . . . . . Alert ID Control Effect 65 | . . . . . . . . . . . . . . . 4 . . . . . 4 1 14 18 8 12 4 Stealth | -11 -10 -10 -10 -9 -8 -8 -8 -8 -7 -7 -7 -7 -6 -6 -5 -5 -5 -5 -4 -4 -4 -3 -3 -2 -1 -1 -1 --------- Run | Yrd Mat Min Exi Min Mat Gar Mat Gar Fac Gar Fac Gar Fac DSF Fac Upp Upp Zhi Pro Fac Gar Res Gar Res Acc Gar Acc Distress Signals 14 | . 2 1 . . 4 . 1 . . 1 . . . . 2 . . . . . . . . 2 . . 1 Communications Jammed 44 | . . . . . . . . . . . . . . . . . . . . . . . . 42 . . 2 Distress Signals 41 | . . . . . . . . . . . . . . . . . . . . . . . . 41 . . . Times Spotted 615 | . 19 10 . . 17 57 10 43 33 33 15 36 . 9 33 9 2 . 19 2 40 18 42 31 12 56 69 Peak Tracking Total 19 | . 6 4 . . 4 6 2 6 6 6 5 5 . 3 5 3 1 . 5 1 5 5 8 7 5 9 19 Tactical Retreats 59 | . 1 2 . . 3 12 . 1 . 2 . 6 . 1 2 1 . . 5 . 7 3 3 1 . 4 5 Traps | -11 -10 -10 -10 -9 -8 -8 -8 -8 -7 -7 -7 -7 -6 -6 -5 -5 -5 -5 -4 -4 -4 -3 -3 -2 -1 -1 -1 ------- Run | Yrd Mat Min Exi Min Mat Gar Mat Gar Fac Gar Fac Gar Fac DSF Fac Upp Upp Zhi Pro Fac Gar Res Gar Res Acc Gar Acc Traps Triggered 25 | . 3 . . . . 1 . 5 2 . . 1 . . . . . . . . 3 . 3 . . 5 2 Indirectly . | . . . . . . . . . . . . . . . . . . . . . . . . . . . . Trap Hack Attempts . | . . . . . . . . . . . . . . . . . . . . . . . . . . . . Triggered . | . . . . . . . . . . . . . . . . . . . . . . . . . . . . Disarmed . | . . . . . . . . . . . . . . . . . . . . . . . . . . . . Reprogrammed . | . . . . . . . . . . . . . . . . . . . . . . . . . . . . Reused . | . . . . . . . . . . . . . . . . . . . . . . . . . . . . Traps Extracted . | . . . . . . . . . . . . . . . . . . . . . . . . . . . . Installed . | . . . . . . . . . . . . . . . . . . . . . . . . . . . . Triggered . | . . . . . . . . . . . . . . . . . . . . . . . . . . . . Machines | -11 -10 -10 -10 -9 -8 -8 -8 -8 -7 -7 -7 -7 -6 -6 -5 -5 -5 -5 -4 -4 -4 -3 -3 -2 -1 -1 -1 ---------- Run | Yrd Mat Min Exi Min Mat Gar Mat Gar Fac Gar Fac Gar Fac DSF Fac Upp Upp Zhi Pro Fac Gar Res Gar Res Acc Gar Acc Machines Disabled 48 | . . . . . 1 . 1 4 7 6 3 5 . . 2 . 1 . . . 5 . 5 3 . 4 1 Max in Single Turn 2 | . . . . . 1 . 1 2 1 1 2 1 . . 1 . 1 . . . 1 . 1 . . 1 . Garrison Relay 20 | . . . . . . . . 2 . 4 . 2 . . . . . . . . 4 . 4 . . 4 . Phase Generator 1 | . . . . . . . . . . . . . . . . . . . . . . . . . . 1 . Machines Repaired . | . . . . . . . . . . . . . . . . . . . . . . . . . . . . Machines Dismantled . | . . . . . . . . . . . . . . . . . . . . . . . . . . . . Machines Sabotaged . | . . . . . . . . . . . . . . . . . . . . . . . . . . . . Overloaded Fab Kills . | . . . . . . . . . . . . . . . . . . . . . . . . . . . . Hacking | -11 -10 -10 -10 -9 -8 -8 -8 -8 -7 -7 -7 -7 -6 -6 -5 -5 -5 -5 -4 -4 -4 -3 -3 -2 -1 -1 -1 --------- Run | Yrd Mat Min Exi Min Mat Gar Mat Gar Fac Gar Fac Gar Fac DSF Fac Upp Upp Zhi Pro Fac Gar Res Gar Res Acc Gar Acc Machines Accessed 71 | . 7 . 1 . 6 3 7 4 8 3 3 2 1 . 4 . 1 4 . 2 2 2 4 3 1 3 . Terminals 50 | . 7 . . . 5 3 4 4 3 3 2 2 1 . 3 . . . . 1 2 1 4 2 . 3 . Fabricators 2 | . . . . . . . . . 2 . . . . . . . . . . . . . . . . . . Repair Stations 2 | . . . . . . . . . . . . . . . 1 . . . . . . . . 1 . . . Recycling Units 2 | . . . . . . . 1 . 1 . . . . . . . . . . . . . . . . . . Scanalyzers 2 | . . . . . . . 1 . 1 . . . . . . . . . . . . . . . . . . Garrison Access 7 | . . . . . 1 . 1 . 1 . 1 . . . . . . . . 1 . 1 . . 1 . . Total Hacks 155 | . 19 . 1 . 22 3 19 7 14 5 4 3 1 . 10 . 1 17 . 3 5 2 8 6 1 4 . Successful 82 | . 10 . 1 . 12 2 11 1 8 1 2 2 1 . 5 . 1 17 . 1 1 1 1 1 1 2 . Failed 73 | . 9 . . . 10 1 8 6 6 4 2 1 . . 5 . . . . 2 4 1 7 5 . 2 . Catastrophic 17 | . 2 . . . 1 . 1 4 2 2 . . . . 1 . . . . 1 . . 2 1 . . . Database Lockouts . | . . . . . . . . . . . . . . . . . . . . . . . . . . . . Manual 43 | . 13 . 1 . 7 . 6 . 5 . 2 . . . 6 . . . . 2 . 1 . . . . . Terminals 112 | . 19 . . . 21 3 11 7 5 5 3 3 1 . 9 . . . . 2 5 1 8 5 . 4 . Fabricators 4 | . . . . . . . . . 4 . . . . . . . . . . . . . . . . . . Repair Stations 2 | . . . . . . . . . . . . . . . 1 . . . . . . . . 1 . . . Recycling Units 3 | . . . . . . . 1 . 2 . . . . . . . . . . . . . . . . . . Scanalyzers 8 | . . . . . . . 6 . 2 . . . . . . . . . . . . . . . . . . Garrison Access 7 | . . . . . 1 . 1 . 1 . 1 . . . . . . . . 1 . 1 . . 1 . . Terminal Hacks 53 | . 7 . 1 . 8 2 4 1 . 1 . 2 1 . 3 . 1 17 . . 1 . 1 1 . 2 . Record 7 | . . . . . 1 . . . . . . . . . . . 1 5 . . . . . . . . . Part Schematic 4 | . . . . . . . . . . . . . . . . . . 4 . . . . . . . . . Robot Schematic 1 | . 1 . . . . . . . . . . . . . . . . . . . . . . . . . . Robot Analysis 8 | . 3 . . . 1 . . . . . . . . . . . . 4 . . . . . . . . . Prototype ID Bank 5 | . . . . . 1 . . . . . . . . . . . . 4 . . . . . . . . . Open Door 3 | . . . . . . . . 1 . . . 1 . . . . . . . . 1 . . . . . . Open DSF 1 | . . . . . . . . . . . . . 1 . . . . . . . . . . . . . . Branch Access Points 1 | . . . . . 1 . . . . . . . . . . . . . . . . . . . . . . Emergency Access Points 5 | . . . . . . 1 . . . 1 . 1 . . 1 . . . . . . . . . . 1 . Terminal Index 1 | . . . . . . . 1 . . . . . . . . . . . . . . . . . . . . Alert Level 1 | . . . . . 1 . . . . . . . . . . . . . . . . . . . . . . Unreport Threat 1 | . . . . . 1 . . . . . . . . . . . . . . . . . . . . . . Locate Traps 3 | . 1 . . . . . 1 . . . . . . . 1 . . . . . . . . . . . . Dispatch Records 2 | . . . . . 1 . 1 . . . . . . . . . . . . . . . . . . . . Hauler Manifests 2 | . 1 . . . 1 . . . . . . . . . . . . . . . . . . . . . . Zone Layout 4 | . 1 . . . . . 1 . . . . . . . 1 . . . . . . . . 1 . . . Garrison Registry 2 | . . . . . . 1 . . . . . . . . . . . . . . . . 1 . . . . Security Stations 1 | . . . . . . . . . . . . . . . . . . . . . . . . . . 1 . Derelict Proto ID Bank 1 | . . . 1 . . . . . . . . . . . . . . . . . . . . . . . . Fabricator Hacks 4 | . . . . . . . . . 4 . . . . . . . . . . . . . . . . . . Load Schematic 2 | . . . . . . . . . 2 . . . . . . . . . . . . . . . . . . Build 2 | . . . . . . . . . 2 . . . . . . . . . . . . . . . . . . Repair Station Hacks . | . . . . . . . . . . . . . . . . . . . . . . . . . . . . Recycling Unit Hacks 1 | . . . . . . . 1 . . . . . . . . . . . . . . . . . . . . Report Inventory 1 | . . . . . . . 1 . . . . . . . . . . . . . . . . . . . . Scanalyzer 5 | . . . . . . . 3 . 2 . . . . . . . . . . . . . . . . . . Insert Component 3 | . . . . . . . 2 . 1 . . . . . . . . . . . . . . . . . . Analyze 2 | . . . . . . . 1 . 1 . . . . . . . . . . . . . . . . . . Garrison Access Hacks 7 | . . . . . 1 . 1 . 1 . 1 . . . . . . . . 1 . 1 . . 1 . . Unlock Access 7 | . . . . . 1 . 1 . 1 . 1 . . . . . . . . 1 . 1 . . 1 . . Unauthorized Hacks 12 | . 3 . . . 3 . 2 . 1 . 1 . . . 2 . . . . . . . . . . . . Terminals 12 | . 3 . . . 3 . 2 . 1 . 1 . . . 2 . . . . . . . . . . . . Assimilate 1 | . . . . . 1 . . . . . . . . . . . . . . . . . . . . . . Botnet 11 | . 3 . . . 2 . 2 . 1 . 1 . . . 2 . . . . . . . . . . . . Fabricators . | . . . . . . . . . . . . . . . . . . . . . . . . . . . . Repair Stations . | . . . . . . . . . . . . . . . . . . . . . . . . . . . . Recycling Units . | . . . . . . . . . . . . . . . . . . . . . . . . . . . . Scanalyzers . | . . . . . . . . . . . . . . . . . . . . . . . . . . . . Garrison Access . | . . . . . . . . . . . . . . . . . . . . . . . . . . . . Data Cores Recovered . | . . . . . . . . . . . . . . . . . . . . . . . . . . . . Used . | . . . . . . . . . . . . . . . . . . . . . . . . . . . . Hacking Detections 53 | . 7 . . . 4 3 6 4 7 2 3 1 . . 4 . . . . 1 1 2 3 3 1 1 . Full Trace Events 7 | . . . . . . . . 1 2 1 . . . . . . . . . . 1 . 1 . . 1 . Feedback Events 1 | . . . . . . . . . . . . . . . . . . . . . . . 1 . . . . Corruption 1 | . . . . . . . . . . . . . . . . . . . . . . . 1 . . . . Feedback Blocked . | . . . . . . . . . . . . . . . . . . . . . . . . . . . . Robot Schematics Acquired 1 | . 1 . . . . . . . . . . . . . . . . . . . . . . . . . . Robots Built 1 | . . . . . . . . . 1 . . . . . . . . . . . . . . . . . . Authchips . | . . . . . . . . . . . . . . . . . . . . . . . . . . . . Time 81 | . . . . . . . . . 81 . . . . . . . . . . . . . . . . . . Total Robot Build Rating 1 | . . . . . . . . . 1 . . . . . . . . . . . . . . . . . . Part Schematics Acquired 6 | . . . . . . . 1 . 1 . . . . . . . . 4 . . . . . . . . . Parts Built 2 | . . . . . . . . . 2 . . . . . . . . . . . . . . . . . . Authchips . | . . . . . . . . . . . . . . . . . . . . . . . . . . . . Time 84 | . . . . . . . . . 84 . . . . . . . . . . . . . . . . . . Total Part Build Rating 8 | . . . . . . . . . 8 . . . . . . . . . . . . . . . . . . Parts Repaired . | . . . . . . . . . . . . . . . . . . . . . . . . . . . . Time . | . . . . . . . . . . . . . . . . . . . . . . . . . . . . Parts Recycled . | . . . . . . . . . . . . . . . . . . . . . . . . . . . . Recycled Matter . | . . . . . . . . . . . . . . . . . . . . . . . . . . . . Retrieved Matter . | . . . . . . . . . . . . . . . . . . . . . . . . . . . . Retrieved Components . | . . . . . . . . . . . . . . . . . . . . . . . . . . . . Parts Scanalyzed 3 | . . . . . . . 2 . 1 . . . . . . . . . . . . . . . . . . Part Schematics Acquired 2 | . . . . . . . 1 . 1 . . . . . . . . . . . . . . . . . . Parts Damaged 1 | . . . . . . . 1 . . . . . . . . . . . . . . . . . . . . Bothacking | -11 -10 -10 -10 -9 -8 -8 -8 -8 -7 -7 -7 -7 -6 -6 -5 -5 -5 -5 -4 -4 -4 -3 -3 -2 -1 -1 -1 ------------ Run | Yrd Mat Min Exi Min Mat Gar Mat Gar Fac Gar Fac Gar Fac DSF Fac Upp Upp Zhi Pro Fac Gar Res Gar Res Acc Gar Acc Used RIF Installer 10 | . . . . . . 2 . 1 . 1 . 2 . . . . . . . . 2 . 1 . . 1 . Coupler Efficiency 1 | . . . . . . . . 1 . . . . . . . . . . . . . . . . . . . Hotswap 1 | . . . . . . . . . . . . 1 . . . . . . . . . . . . . . . Command Fork 1 | . . . . . . . . . . . . . . . . . . . . . 1 . . . . . . Signal Jammer 1 | . . . . . . . . . . . . . . . . . . . . . . . 1 . . . . Alert ID Control 1 | . . . . . . . . . . 1 . . . . . . . . . . . . . . . . . Structural Interface 1 | . . . . . . 1 . . . . . . . . . . . . . . . . . . . . . Program Shield 1 | . . . . . . . . . . . . 1 . . . . . . . . . . . . . . . Autoassimilate 2 | . . . . . . . . . . . . . . . . . . . . . 1 . . . . 1 . Robots Hacked 107 | . . . . . . . 3 4 8 2 . 1 . . 1 2 . . . . 6 2 20 10 7 24 17 Non-combat 4 | . . . . . . . 1 . . . . 1 . . . 1 . . . . . . . . 1 . . Combat 103 | . . . . . . . 2 4 8 2 . . . . 1 1 . . . . 6 2 20 10 6 24 17 Autoassimilated 12 | . . . . . . . . . . . . . . . . . . . . . . 1 3 1 2 4 1 Robot Hacks Applied 101 | . . . . . . . 5 4 8 3 . 1 . . 1 2 . . . . 6 1 18 9 5 21 17 parse_system 8 | . . . . . . . 1 . . 1 . . . . . 2 . . . . . . 2 . 1 1 . no_distress 1 | . . . . . . . 1 . . . . . . . . . . . . . . . . . . . . scatter_targeting 8 | . . . . . . . 1 . . . . . . . . . . . . . . . 1 . . 4 2 disable_weapons 3 | . . . . . . . . 1 . . . . . . . . . . . . . . . . . . 2 go_dormant 2 | . . . . . . . . . . . . . . . . . . . . . . . . 1 . 1 . overwrite_iff 16 | . . . . . . . 1 1 6 . . . . . . . . . . . 1 . 3 1 . . 3 streamctrl_high 2 | . . . . . . . . . . 1 . . . . . . . . . . . . . . . 1 . formatsys_low 1 | . . . . . . . . . . . . 1 . . . . . . . . . . . . . . . formatsys_high 60 | . . . . . . . 1 2 2 1 . . . . 1 . . . . . 5 1 12 7 4 14 10 Relay Couplers Released 87 | . . . . . . 3 . 12 . 16 . 8 . . . . . . . . 16 . 16 . . 16 . Machine Destruction 80 | . . . . . . . . 8 . 16 . 8 . . . . . . . . 16 . 16 . . 16 . Programmers 7 | . . . . . . 3 . 4 . . . . . . . . . . . . . . . . . . . Attached 44 | . . . . . . . 1 3 2 1 1 1 1 . 1 . . . . . 3 2 13 2 1 9 3 Fabnet Peak Effective % . | . . . . . . . . . . . . . . . . . . . . . . . . . . . . Robots Rewired 21 | . . . . . . . . 13 . . . 3 . . . . . . . . 2 . 3 . . . . Allies Hacked 1 | . . . . . . . . 1 . . . . . . . . . . . . . . . . . . . Hacks Repelled . | . . . . . . . . . . . . . . . . . . . . . . . . . . . . Allies | -11 -10 -10 -10 -9 -8 -8 -8 -8 -7 -7 -7 -7 -6 -6 -5 -5 -5 -5 -4 -4 -4 -3 -3 -2 -1 -1 -1 -------- Run | Yrd Mat Min Exi Min Mat Gar Mat Gar Fac Gar Fac Gar Fac DSF Fac Upp Upp Zhi Pro Fac Gar Res Gar Res Acc Gar Acc Total Allies 127 | . . 2 . . 1 . 1 16 9 2 . 6 . . 1 . . . . . 9 2 25 10 7 19 17 Largest Group 10 | . . 2 . . 1 . 1 6 5 2 1 3 1 1 1 . . . . . 4 2 10 9 9 3 4 Highest-Rated Group 820 | . . 45 . . 26 . 29 109 110 42 21 160 26 26 41 . . . . . 182 128 582 762 820 196 296 Highest-Rated Ally 178 | . . 31 . . 26 . 29 31 32 21 21 80 26 26 41 . . . . . 56 64 116 178 178 69 89 Total Orders 13 | . . . . . . . . . 2 . . . . 4 . . . . . . 2 . 5 . . . . STAY 4 | . . . . . . . . . 1 . . . . 1 . . . . . . . . 2 . . . . ROAM 2 | . . . . . . . . . . . . . . 1 . . . . . . 1 . . . . . . FOLLOW 6 | . . . . . . . . . 1 . . . . 2 . . . . . . . . 3 . . . . AID 1 | . . . . . . . . . . . . . . . . . . . . . 1 . . . . . . Ally Attacks 672 | . . 3 . . . . 14 109 56 1 4 18 . . 15 . . . . . 54 5 76 129 39 95 54 Total Damage 23513 | . . 44 . . . . 208 1926 2126 25 101 502 . . 678 . . . . . 1930 195 2607 6163 1548 3344 2116 Kills 114 | . . . . . . . 1 15 18 . . 5 . . 4 . . . . . 6 1 16 22 9 13 4 Allies Corrupted 9 | . . . . . . . . 1 . . . 1 . . . . . . . . . . . . 2 3 2 Allies Melted . | . . . . . . . . . . . . . . . . . . . . . . . . . . . . Intel | -11 -10 -10 -10 -9 -8 -8 -8 -8 -7 -7 -7 -7 -6 -6 -5 -5 -5 -5 -4 -4 -4 -3 -3 -2 -1 -1 -1 ------- Run | Yrd Mat Min Exi Min Mat Gar Mat Gar Fac Gar Fac Gar Fac DSF Fac Upp Upp Zhi Pro Fac Gar Res Gar Res Acc Gar Acc Robot Analysis Total 8 | . 3 . . . 1 . . . . . . . . . . . . 4 . . . . . . . . . Derelict Logs Recovered 7 | . . 2 . 1 . . . . . . . . . . . 1 1 . 2 . . . . . . . . Drone Launches . | . . . . . . . . . . . . . . . . . . . . . . . . . . . . Drone Recoveries . | . . . . . . . . . . . . . . . . . . . . . . . . . . . . Exploration | -11 -10 -10 -10 -9 -8 -8 -8 -8 -7 -7 -7 -7 -6 -6 -5 -5 -5 -5 -4 -4 -4 -3 -3 -2 -1 -1 -1 ------------- Run | Yrd Mat Min Exi Min Mat Gar Mat Gar Fac Gar Fac Gar Fac DSF Fac Upp Upp Zhi Pro Fac Gar Res Gar Res Acc Gar Acc Turns Passed 35783 | 111 1505 707 472 256 1116 1808 1183 2952 1828 2799 601 3527 11 217 694 1191 616 409 638 396 3716 664 2945 373 233 4199 616 Spaces Moved 18761 | 48 724 431 246 131 371 1002 514 1501 1038 1426 293 1700 6 79 284 628 339 201 488 297 1966 435 1924 247 116 1891 435 Core 124 | 2 1 . . . . . . . . . . . . . . . . . . . 8 . . . . . 113 Treads 5310 | 46 723 168 . . . . . . . 1199 293 1700 6 79 116 38 . . . . . . . . . 922 20 Legs 12866 | . . 81 246 131 360 1002 514 1501 1038 227 . . . . . 577 339 201 488 297 1871 435 1924 247 116 969 302 Wheels 206 | . . 182 . . 11 . . . . . . . . . . 13 . . . . . . . . . . . Hover 255 | . . . . . . . . . . . . . . . 168 . . . . . 87 . . . . . . Flight . | . . . . . . . . . . . . . . . . . . . . . . . . . . . . Fastest Speed 50 | 50 160 95 190 190 123 122 122 120 120 120 166 163 165 165 160 120 120 120 120 120 52 120 120 120 120 116 50 Average Speed 148 | 155 160 146 190 190 163 141 174 161 121 166 166 166 165 165 179 160 167 181 121 120 117 120 120 120 120 182 105 Slowest Speed 470 | 160 300 240 190 190 190 193 192 470 123 270 166 250 165 165 420 330 190 190 190 120 148 120 120 120 120 330 188 Overloaded Moves . | . . . . . . . . . . . . . . . . . . . . . . . . . . . . Propulsion Burnouts . | . . . . . . . . . . . . . . . . . . . . . . . . . . . . Robots Hopped 2 | . . . . . . . . . . . . . . . . . . . . . . . 2 . . . . Cave-ins Triggered 2 | . . . . . . . . . . . . . . . . . . . . 1 . . 1 . . . . Teleports 1 | . . . . . . . . . . . . . . . . . . . . . . . . . . . 1 Exploration Rate (%) 52 | 4 93 71 62 31 25 95 42 99 22 95 9 93 . 90 9 66 47 60 54 10 92 10 98 13 2 98 19 Regions Visited 27 Branch Regions 7 Pre-discovered Areas 5 | . . 1 . 1 . . . . . . . . . . . . . 3 . . . . . . . . . Known Exits Taken 8 | . . . . . 1 . 1 . 1 . 1 . 1 . . . . . . 1 . 1 . . 1 . . Unknown Exits Taken 11 | 1 1 1 1 1 . . . . . . . . . . 1 1 1 1 1 . . . . 1 . . . Scrap Searched 6 | . . 1 . 2 . . . . . . . . . . . 2 1 . . . . . . . . . . Spaces Dug 136 | . 3 . . . 1 17 5 8 12 14 2 . . . 2 2 . . 1 7 18 6 12 1 . 4 21 Terrain Destroyed 552 | . 19 . . . 8 88 7 69 30 132 53 40 . . 8 3 . . 1 7 18 6 13 2 . 24 24 Melee 59 | . . . . . 1 16 . . 12 1 . . . . 2 2 . . 1 7 9 6 2 . . . . Projectile 159 | . 3 . . . . 22 7 28 1 4 18 2 . . 6 . . . . . 9 . 11 2 . 22 24 AOE 331 | . 16 . . . 7 50 . 41 17 127 35 38 . . . . . . . . . . . . . . . Terrain Rammed . | . . . . . . . . . . . . . . . . . . . . . . . . . . . . Walls Destroyed . | . . . . . . . . . . . . . . . . . . . . . . . . . . . . Machines Disabled . | . . . . . . . . . . . . . . . . . . . . . . . . . . . . Actions | -11 -10 -10 -10 -9 -8 -8 -8 -8 -7 -7 -7 -7 -6 -6 -5 -5 -5 -5 -4 -4 -4 -3 -3 -2 -1 -1 -1 --------- Run | Yrd Mat Min Exi Min Mat Gar Mat Gar Fac Gar Fac Gar Fac DSF Fac Upp Upp Zhi Pro Fac Gar Res Gar Res Acc Gar Acc Total 24961 | 70 1015 473 251 138 792 1246 787 1900 1481 1728 361 2235 7 156 418 724 368 237 513 327 3222 541 2507 310 205 2402 547 Wait 3537 | 1 223 12 . . 311 35 237 146 266 147 11 290 . 58 67 5 . . . 6 998 58 402 34 77 142 11 Move 18728 | 47 723 430 245 130 371 999 514 1499 1038 1424 293 1698 5 79 283 627 338 200 487 297 1964 435 1917 246 115 1889 435 Hop 1 | . . . . . . . . . . . . . . . . . . . . . . . 1 . . . . Pick Up 232 | 2 15 2 2 2 13 20 4 16 13 7 4 21 . . 2 2 6 7 . 4 24 . 21 . . 39 6 Fast Attach 148 | 7 2 . . . 3 4 . 4 9 5 . 6 . . 11 15 . 1 4 4 22 6 7 . . 33 5 Attach 130 | . 1 . . 1 8 7 1 7 6 5 1 10 1 3 12 5 1 1 4 5 7 2 5 4 1 21 11 Detach 37 | 1 . . . . . . . 2 2 1 . 4 . 5 5 4 . 2 . 2 3 1 . . . 2 3 Swap 366 | . 20 11 2 3 15 23 8 32 37 32 11 27 1 2 . 8 8 11 2 1 25 3 38 4 1 33 8 Drop 232 | . 6 2 2 2 9 18 5 20 15 10 7 31 . 1 . . . 8 . . 22 2 30 . . 35 7 Fire 1078 | 12 25 16 . . 61 93 18 135 75 89 34 87 . 7 27 21 1 . . . 39 1 64 22 11 182 58 Melee 368 | . . . . . 1 42 . 4 20 8 . 17 . . 11 37 14 7 16 8 116 33 19 . . 15 . Ram 3 | . . . . . . . . . . . . . . . . . . . . . . . . . . . 3 Kick 2 | . . . . . . . . . . . . . . . . . . . . . 1 . 1 . . . . Crush 1 | . . . . . . . . . . . . . . 1 . . . . . . . . . . . . . Escape Stasis 28 | . . . . . . 5 . 15 . . . . . . . . . . . . . . 2 . . 6 . Rewire 70 | . . . . . . . . 20 . . . 44 . . . . . . . . 1 . . . . 5 . Trap . | . . . . . . . . . . . . . . . . . . . . . . . . . . . . Miscellaneous . | . . . . . . . . . . . . . . . . . . . . . . . . . . . . Route ------- -11/Scrapyard -10/Materials (discovered 4 exits: [*Mat x3] / [*Min]) -10/Mines (discovered 2 exits: [*Mat] / *Exi) -10/Exiles -9/Mines (discovered 2 exits: *Mat x2) -8/Materials (discovered 2 exits: Sto / Gar) -8/Garrison (discovered 3 exits: *Mat x3) -8/Materials (discovered 5 exits: *Fac x2 / *Sto x2 / Gar) -8/Garrison (discovered 3 exits: *Fac x3) -7/Factory (discovered 2 exits: *Fac / Gar) -7/Garrison (discovered 3 exits: *Fac x3) -7/Factory -7/Garrison (discovered 3 exits: *Fac x3) -6/Factory -6/DSF -5/Factory -5/Upper Caves -5/Upper Caves (discovered 2 exits: *Fac / *Zhi) -5/Zhirov -4/Proximity Caves -4/Factory -4/Garrison (discovered 3 exits: *Res x3) -3/Research (discovered 3 exits: *Res x2 / Gar) -3/Garrison (discovered 4 exits: *Res x3 / [*Res]) -2/Research -1/Access -1/Garrison (discovered 3 exits: [*Acc x3]) -1/Access History --------- Turn | Location | Event 31 | -11/Scrapyard | Discovered new exit (range 14) 112 | -11/Scrapyard | Entered Materials 314 | -10/Materials | Build established: Mutant 340 | -10/Materials | Discovered new exit (range 4) 881 | -10/Materials | Discovered new exit (range 5) 1466 | -10/Materials | Discovered new exit (range 12) 1504 | -10/Materials | Discovered new exit (range 15) 1617 | -10/Materials | Entered Mines 1664 | -10/Mines | Assembled infested the area 1918 | -10/Mines | Learned Materials garrison access intel 1949 | -10/Mines | Found a damaged Exp. Sensor Array with a note attached 1951 | -10/Mines | Found Prototype Device 2180 | -10/Mines | Discovered new exit (range 8) 2288 | -10/Mines | Learned location of Zion (-7) 2314 | -10/Mines | Deemed a non-threat by the Exiles lab entrance 2314 | -10/Mines | Discovered new exit (range 5) 2324 | -10/Mines | Entered Exiles 2370 | -10/Exiles | Met 8R-AWN 2402 | -10/Exiles | Met EX-HEX 2461 | -10/Exiles | Met EX-BIN 2484 | -10/Exiles | Aligned with FarCom system 2486 | -10/Exiles | Given EX-Vault access code 2532 | -10/Exiles | Opened EX-Vault 2547 | -10/Exiles | Found Longsword +1 2588 | -10/Exiles | Warned to stay clear of 0b10 Research branches 2649 | -10/Exiles | Met EX-DEC 2770 | -10/Exiles | Discovered new exit (range 15) 2796 | -10/Exiles | Left Exiles lab with Longsword +1 2796 | -10/Exiles | Entered Mines 2802 | -9/Mines | Met a Derelict bent on vengeance 2966 | -9/Mines | Discovered new exit (range 14) 3012 | -9/Mines | Discovered new exit (range 10) 3052 | -9/Mines | Entered Materials 3052 | -8/Materials | Evolved 4 slots: Propulsion x2, Utility x2 3053 | -8/Materials | Loaded intel: 1 garrison access location 3335 | -8/Materials | Build established: Scavenger-Mutant 3563 | -8/Materials | Lost 5 parts (1p3u1w) 3774 | -8/Materials | Found Powered Armor 3777 | -8/Materials | Found Powered Armor 3780 | -8/Materials | Found Powered Armor 4082 | -8/Materials | Found Powered Armor 4105 | -8/Materials | Identified exit to Storage 4168 | -8/Materials | Identified exit to Garrison 4168 | -8/Materials | Entered Garrison 4220 | -8/Garrison | Discovered new exit (range 78) 4220 | -8/Garrison | Discovered new exit (range 60) 4220 | -8/Garrison | Discovered new exit (range 46) 4234 | -8/Garrison | Triggered checkpoint 4372 | -8/Garrison | Triggered checkpoint 4470 | -8/Garrison | Destroyed 7 combat bots 4538 | -8/Garrison | Assembled breached garrison interior 4583 | -8/Garrison | Build established: Mutant 4651 | -8/Garrison | Installed Relay Interface Framework 4811 | -8/Garrison | Destroyed 17 combat bots 4813 | -8/Garrison | Lost 3 parts (3u) 5037 | -8/Garrison | Expanded RIF knowledge: Structural Interface 5183 | -8/Garrison | Destroyed 9 combat bots 5976 | -8/Garrison | Entered Materials 5976 | -8/Materials | Discovered exit to Storage (range 7) 6669 | -8/Materials | Discovered new exit (range 13) 6743 | -8/Materials | Identified Exp. Sensor Array 6914 | -8/Materials | Discovered exit to Storage (range 8) 7112 | -8/Materials | Discovered new exit (range 11) 7159 | -8/Materials | Identified exit to Garrison 7159 | -8/Materials | Entered Garrison 7295 | -8/Garrison | Triggered checkpoint 7531 | -8/Garrison | Core integrity fell below 50% 7674 | -8/Garrison | Discovered new exit (range 10) 7683 | -8/Garrison | Build established: Scavenger-Mutant 7783 | -8/Garrison | Triggered checkpoint 7851 | -8/Garrison | Triggered checkpoint 7919 | -8/Garrison | Lost 3 allies 8044 | -8/Garrison | Triggered checkpoint 8076 | -8/Garrison | Triggered checkpoint 8209 | -8/Garrison | Lost 6 parts (3n2u1w) 8351 | -8/Garrison | Triggered checkpoint 8807 | -8/Garrison | Expanded RIF knowledge: Coupler Efficiency 8862 | -8/Garrison | Discovered new exit (range 8) 9008 | -8/Garrison | Triggered checkpoint 9012 | -8/Garrison | Discovered new exit (range 12) 9293 | -8/Garrison | Triggered checkpoint 9369 | -8/Garrison | Triggered checkpoint 9382 | -8/Garrison | Garrison Relay disabled 9436 | -8/Garrison | Lost 6 allies 9672 | -8/Garrison | Garrison Relay disabled 9761 | -8/Garrison | Build established: Bothacker-Mutant 10111 | -8/Garrison | Entered Factory 10111 | -7/Factory | Accompanied by 4 allies 10111 | -7/Factory | Evolved 2 slots: Utility x2 10511 | -7/Factory | First assault squad dispatched 10931 | -7/Factory | Fabricated Powered Armor? 10939 | -7/Factory | Fabricated M-13 Machinist? 11076 | -7/Factory | Lost 4 allies 11184 | -7/Factory | Discovered new exit (range 11) 11939 | -7/Factory | Identified exit to Garrison 11939 | -7/Factory | Entered Garrison 12208 | -7/Garrison | Triggered checkpoint 12296 | -7/Garrison | Triggered checkpoint 12348 | -7/Garrison | Triggered checkpoint 12808 | -7/Garrison | Discovered new exit (range 14) 13043 | -7/Garrison | Triggered checkpoint 13093 | -7/Garrison | Discovered new exit (range 11) 13481 | -7/Garrison | Discovered new exit (range 15) 13859 | -7/Garrison | Triggered checkpoint 14077 | -7/Garrison | Triggered checkpoint 14092 | -7/Garrison | Expanded RIF knowledge: Alert ID Control 14117 | -7/Garrison | Garrison Relay disabled 14363 | -7/Garrison | Garrison Relay disabled 14463 | -7/Garrison | Garrison Relay disabled 14684 | -7/Garrison | Garrison Relay disabled 14738 | -7/Garrison | Entered Factory 14738 | -7/Factory | Accompanied by 1 ally 15097 | -7/Factory | P-60 Hacker assimilated allied Commando 4a 15138 | -7/Factory | First assault squad dispatched 15165 | -7/Factory | Garrison activated, responded to threat 15339 | -7/Factory | Identified exit to Garrison 15339 | -7/Factory | Entered Garrison 15353 | -7/Garrison | Build established: Mutant 15400 | -7/Garrison | Heavy support dispatched to Factory 15405 | -7/Garrison | Triggered checkpoint 15414 | -7/Garrison | Heavy support dispatched to Factory 15563 | -7/Garrison | Core integrity fell below 50% 15894 | -7/Garrison | Garrison Relay disabled 15980 | -7/Garrison | Triggered checkpoint 16087 | -7/Garrison | Triggered checkpoint 16318 | -7/Garrison | Discovered new exit (range 11) 16319 | -7/Garrison | Heavy support dispatched to Factory 16344 | -7/Garrison | Expanded RIF knowledge: Program Shield 16727 | -7/Garrison | Heavy support dispatched to Factory 16812 | -7/Garrison | Build established: Scavenger-Mutant 16995 | -7/Garrison | Discovered new exit (range 10) 17235 | -7/Garrison | Triggered checkpoint 17235 | -7/Garrison | Triggered checkpoint 17278 | -7/Garrison | Lost 3 allies 17387 | -7/Garrison | Found embedded Infiltrators 17391 | -7/Garrison | Discovered new exit (range 12) 17429 | -7/Garrison | Triggered checkpoint 17774 | -7/Garrison | Build established: Mutant 17863 | -7/Garrison | Triggered checkpoint 17918 | -7/Garrison | Core integrity fell below 20% 18023 | -7/Garrison | Expanded RIF knowledge: Hotswap 18274 | -7/Garrison | Garrison Relay disabled 18372 | -7/Garrison | Build established: Scavenger-Mutant 18866 | -7/Garrison | Entered Factory 18866 | -6/Factory | Accompanied by 1 ally 18866 | -6/Factory | Evolved 2 slots: Power x1, Weapon x1 18873 | -6/Factory | Identified exit to DSF 18877 | -6/Factory | Entered DSF 18877 | -6/DSF | Accompanied by 1 ally 18941 | -6/DSF | Additional patrols routed to DSF 19003 | -6/DSF | Discovered new exit (range 14) 19094 | -6/DSF | Entered Factory 19094 | -5/Factory | Accompanied by 1 ally 19094 | -5/Factory | Evolved 2 slots: Utility x2 19394 | -5/Factory | First assault squad dispatched 19407 | -5/Factory | Build established: Bothacker-Mutant 19407 | -5/Factory | Discovered new exit (range 14) 19613 | -5/Factory | Lost 8 parts (1p3n3u1w) 19680 | -5/Factory | Lost 4 parts (2p1n1w) 19788 | -5/Factory | Entered Upper Caves 19839 | -5/Upper Caves | Lost 4 parts (1n3u) 19947 | -5/Upper Caves | Lost 3 parts (2n1u) 20104 | -5/Upper Caves | Build established: Scavenger-Mutant 20398 | -5/Upper Caves | Attracted the attention of an 0b10 checkpoint 20447 | -5/Upper Caves | Lost 3 parts (2p1w) 20788 | -5/Upper Caves | Spotted B-75 Beast 20789 | -5/Upper Caves | Core integrity fell below 50% 20902 | -5/Upper Caves | Discovered new exit (range 7) 20979 | -5/Upper Caves | Entered another Upper Caves area 20981 | -5/Upper Caves | Attracted the attention of an 0b10 checkpoint 21084 | -5/Upper Caves | Discovered new exit (range 9) 21385 | -5/Upper Caves | Learned Factory trap positions 21505 | -5/Upper Caves | Found Alien Artifact 21549 | -5/Upper Caves | Discovered new exit (range 10) 21595 | -5/Upper Caves | Entered Zhirov 21595 | -5/Zhirov | Discovered new exit (range 3) 21630 | -5/Zhirov | Met Zhirov 21664 | -5/Zhirov | Learned location of Quarantine (-3) 21664 | -5/Zhirov | Learned location of Testing (-2) 21664 | -5/Zhirov | Learned location of Command (-1) 21681 | -5/Zhirov | Zhirov requested help retrieving the SGEMP Prototype 21710 | -5/Zhirov | Found Alien Artifact 21710 | -5/Zhirov | Identified Integrated Reactor 21710 | -5/Zhirov | Installed Integrated Reactor, increased core energy generation (+10) 21740 | -5/Zhirov | Found Alien Artifact 22004 | -5/Zhirov | Entered Proximity Caves 22007 | -4/Proximity Caves | Spotter reported a threat 22007 | -4/Proximity Caves | Spotter reported a threat 22195 | -4/Proximity Caves | Spotter reported a threat 22424 | -4/Proximity Caves | Attracted the attention of an 0b10 checkpoint 22478 | -4/Proximity Caves | Lost 6 parts (1p2n3u) 22523 | -4/Proximity Caves | Learned location of 1 exit from Research 22556 | -4/Proximity Caves | Learned Research non-interactive machine intel 22595 | -4/Proximity Caves | Discovered new exit (range 16) 22640 | -4/Proximity Caves | Spotted B-86 Titan 22641 | -4/Proximity Caves | Lost 3 parts (1p1n1u) 22642 | -4/Proximity Caves | Entered Factory 22642 | -4/Factory | Evolved 2 slots: Propulsion x2 22643 | -4/Factory | Loaded intel: 119 trap records 22892 | -4/Factory | Search patrols dispatched 22989 | -4/Factory | Crushed by falling debris 23037 | -4/Factory | Identified exit to Garrison 23038 | -4/Factory | Entered Garrison 23116 | -4/Garrison | Lost 3 parts (1p1n1u) 23150 | -4/Garrison | Expanded RIF knowledge: Command Fork 23188 | -4/Garrison | Spotted Striker 23188 | -4/Garrison | Spotted Striker 23211 | -4/Garrison | Destroyed Striker 23227 | -4/Garrison | Core integrity fell below 50% 23256 | -4/Garrison | Destroyed Striker 23272 | -4/Garrison | Core integrity fell below 20% 23285 | -4/Garrison | Lost 12 parts (2p8n2u) 23426 | -4/Garrison | Garrison Relay disabled 23917 | -4/Garrison | Spotted B-86 Titan 24424 | -4/Garrison | Heavy support dispatched to Research 24878 | -4/Garrison | Triggered checkpoint 25194 | -4/Garrison | Destroyed B-86 Titan 25258 | -4/Garrison | Triggered checkpoint 25261 | -4/Garrison | Triggered checkpoint 25294 | -4/Garrison | Triggered checkpoint 25524 | -4/Garrison | Triggered checkpoint 25567 | -4/Garrison | Garrison Relay disabled 25610 | -4/Garrison | Discovered new exit (range 15) 25666 | -4/Garrison | Expanded RIF knowledge: Autoassimilate 25778 | -4/Garrison | Heavy support dispatched to Research 25834 | -4/Garrison | Triggered checkpoint 25943 | -4/Garrison | Garrison Relay disabled 25989 | -4/Garrison | Discovered new exit (range 12) 26088 | -4/Garrison | Triggered checkpoint 26331 | -4/Garrison | Discovered new exit (range 15) 26376 | -4/Garrison | Garrison Relay disabled 26587 | -4/Garrison | Heavy support dispatched to Research 26754 | -4/Garrison | Entered Research 26754 | -3/Research | Evolved 2 slots: Utility x2 26755 | -3/Research | Identified exit to Research 26756 | -3/Research | Loaded intel: 86 non-interactive machine locations 27004 | -3/Research | First assault squad dispatched 27228 | -3/Research | Lost 3 parts (1p2u) 27412 | -3/Research | Discovered exit to Research (range 15) 27418 | -3/Research | Identified exit to Garrison 27418 | -3/Research | Entered Garrison 27429 | -3/Garrison | Expanded RIF knowledge: Signal Jamming 27508 | -3/Garrison | System corruption reached 10% 27600 | -3/Garrison | Triggered checkpoint 27621 | -3/Garrison | Garrison Relay disabled 27792 | -3/Garrison | Triggered checkpoint 27795 | -3/Garrison | Crushed by falling debris 27820 | -3/Garrison | Build established: Botlord-Mutant 27826 | -3/Garrison | Lost 3 parts (1p2u) 27892 | -3/Garrison | Spotted B-86 Titan 27947 | -3/Garrison | Lost 3 parts (1n1u1w) 27968 | -3/Garrison | Lost 4 allies 28151 | -3/Garrison | Assimilated Titan 8a with formatsys_high 28275 | -3/Garrison | Lost 4 allies 28412 | -3/Garrison | Triggered checkpoint 28486 | -3/Garrison | Triggered checkpoint 28616 | -3/Garrison | Triggered checkpoint 28770 | -3/Garrison | Garrison Relay disabled 28798 | -3/Garrison | Triggered checkpoint 28846 | -3/Garrison | Rescued a captive Derelict 28850 | -3/Garrison | Lost 3 allies 28913 | -3/Garrison | Discovered exit to Research (range 10) 29325 | -3/Garrison | Discovered exit to Research (range 3) 29390 | -3/Garrison | Garrison Relay disabled 29536 | -3/Garrison | Discovered new exit (range 3) 29622 | -3/Garrison | Triggered checkpoint 29641 | -3/Garrison | Discovered exit to Research (range 11) 29690 | -3/Garrison | Garrison Relay disabled 29726 | -3/Garrison | Discovered exit to Research (range 23) 29726 | -3/Garrison | Discovered exit to Research (range 43) 29726 | -3/Garrison | Discovered exit to Research (range 62) 29726 | -3/Garrison | Discovered new exit (range 38) 30000 | -3/Garrison | Spotted B-86 Titan 30001 | -3/Garrison | Autoassimilated Titan 8b with RIF 30297 | -3/Garrison | Build established: Botlord-Gunner 30363 | -3/Garrison | Entered Research 30363 | -2/Research | Accompanied by 9 allies 30363 | -2/Research | Evolved 2 slots: Power x1, Utility x1 30385 | -2/Research | Spotted B-90 Cyclops 30426 | -2/Research | Allies destroyed B-90 Cyclops 30437 | -2/Research | Lost 5 allies 30658 | -2/Research | Build established: Botlord-Mutant 30661 | -2/Research | Lost 4 allies 30676 | -2/Research | Discovered new exit (range 15) 30736 | -2/Research | Entered Access 30736 | -1/Access | Accompanied by 6 allies 30736 | -1/Access | Evolved 2 slots: Propulsion x1, Utility x1 30780 | -1/Access | Identified exit to Garrison 30789 | -1/Access | Garrison activated, responded to threat 30924 | -1/Access | Garrison activated, responded to threat 30969 | -1/Access | Entered Garrison 30977 | -1/Garrison | Lost 13 allies 31187 | -1/Garrison | Triggered checkpoint 31253 | -1/Garrison | Lost 4 allies 31309 | -1/Garrison | Lost 7 parts (4p3u) 31367 | -1/Garrison | Triggered checkpoint 31402 | -1/Garrison | Garrison Relay disabled 31496 | -1/Garrison | Spotted B-99 Colossus 31499 | -1/Garrison | Triggered checkpoint 31510 | -1/Garrison | Triggered checkpoint 31567 | -1/Garrison | Lost 6 allies 31624 | -1/Garrison | Lost 11 parts (4p1n5u1w) 31777 | -1/Garrison | Destroyed B-99 Colossus 31790 | -1/Garrison | Lost 13 parts (3p5n1u4w) 31795 | -1/Garrison | Found Hvy. Insulated Plating 31811 | -1/Garrison | Found Multirail 31856 | -1/Garrison | System corruption reached 10% 32089 | -1/Garrison | Build established: Botlord-Tank 32212 | -1/Garrison | Discovered new exit (range 3) 32282 | -1/Garrison | Learned Access security intel 32289 | -1/Garrison | Triggered checkpoint 32362 | -1/Garrison | Phase Generator disabled 32518 | -1/Garrison | Garrison Relay disabled 33041 | -1/Garrison | Triggered checkpoint 33135 | -1/Garrison | Discovered new exit (range 10) 33356 | -1/Garrison | Garrison Relay disabled 33444 | -1/Garrison | Discovered new exit (range 13) 33477 | -1/Garrison | Triggered checkpoint 33894 | -1/Garrison | Lost 3 allies 34020 | -1/Garrison | Garrison Relay disabled 34086 | -1/Garrison | Expanded RIF knowledge: Autoassimilate 34236 | -1/Garrison | Build established: Botlord-Skirmisher 35168 | -1/Garrison | Entered Access 35335 | -1/Access | Spotted B-99 Colossus 35362 | -1/Access | Identified Transdimensional Reconstructor 35362 | -1/Access | Warped through subspace 35380 | -1/Access | Lost 7 allies 35453 | -1/Access | First assault squad dispatched 35631 | -1/Access | Core integrity fell below 50% 35661 | -1/Access | Lost 10 parts (3n4u3w) 35668 | -1/Access | Lost 3 allies 35702 | -1/Access | Released all parts (7) 35705 | -1/Access | Core integrity fell below 20% 35732 | -1/Access | Lost 7 parts (2p4n1u) 35784 | -1/Access | Destroyed by H-88 Terminator with KE Penetrator Last Messages --------------- 35766_ P-80 Master resets L-61 Swordsman, system corruption cleaned. 35767_ Slug penetrates Wall. 35768_ P-80 Master resets L-61 Swordsman, system corruption cleaned. 35769_ RIF reveals location of hidden door. 35771_ System corrupted: Energy discharge (-32). 35776_ Slammed into W-44 Eye. 35777_ Jacked Y-72 Warden... >>formatsys_high Rerouting network defenses. Erasing system data. Installing primary routines, ETC: 6. 35783_ C-30 ARC bursts open, deploying its payload. 35783_ G-73 Enforcer unfolds itself. 35783_ I-47 Archangel unfolds itself. 35783_ Adv. Remote Datajack destroyed. 35783_ Warden 10d reactivates. 35783_ W-44 Eye sends out distress signal. 35784_ Slug penetrates Sealed Heavy Doors. [Achievement: 30k Club] [Achievement: 40k Club] Map ----- +----------------------------------------------------+ | ????????????????????????????????????????# " | | ????????????????????????????????????????# """ | | ????????????????????????????????????????# """ | | ????????????????????????????????????????# " | | ????????????????????????????????????????# | | ????????????????????????????????####+#### | | ?????????????????##############?# ####"##### | | ?????????????????# #?# | | ?????????????????# ### | | ?????????????????# """""" gg | | ?????????????????# ""S""" ### | | ?????????????????+ """ #?#l | | ?????????????????# #?# #####++### | | ?????????????????# #?### ###????????? | | ?????????????????# #???# #??????????? | | ?????????????????# #???# #??????????? | | ?????????????????# #???# #??????????? | | ?????????????????# p #???# #??????????? | | ?????????????????# *#???# #??????????? | | ?????????????????#######p######???# #??????????? | | ??????????############ ####### ??????????? | | ????????? w Y "" ??????????? | | ????????? "T #?????????? | | ????????? #?????????? | | ???????????########### w ####### = #?????????? | | ?????????????????????## @##????????####?????????? | | ????????????????w #??????????????????????? | | ???????????? #??????????????????????? | | ??????????? w #??????????????????????? | | ?????????? ggig #??????????????????????? | | ??????????? Cg #??????????????????????? | | ???????????############ #??????????????????????? | | ??????????????????????#"""#??????????????????????? | | ?????????????????????????????????????????????????? | | ????????????????BB????h???h??????????????????????? | | ????????????????BB??????????????BB???????????????? | | ????????????????????????????????BB???????????????? | | ?????????????????????????????????????????????????? | | ?????????????????????????????????????????????????? | | ?????????????????????????????????????????????????? | | ?????????????????????????????????????????????????? | | ?????????????????????????????????????????????????? | | ?????????????????????????????????????????????????? | | ?????????????????????????????????????????????????? | | ?????????????????????????????????????????????????? | | ?????????????????????????????????????????????????? | | ?????????????????????????????????????????????????? | | ?????????????????????????????????????????????????? | | ?????????????????????????????????????????????????? | | ?????????????????????????????????????????????????? | +----------------------------------------------------+ Best States ------------- Heat Dissipation 128 Energy Generation 75 Energy Capacity 690 Matter Stores 300 Matter Capacity 300 Sight Range 16 Terrain Scan Density 10 Base Temperature (-) 200 EM Shielding 2 Corruption Block 15 Armor Coverage 1650 Resistance: TH 15 Resistance: EM 30 Core Shielding 30 Propulsion Shielding 66 Utility Shielding 66 Weapon Shielding 90 Phase Shifting 5 Evasion (%) 69 Targeting Accuracy 5 Melee Accuracy 6 Target Analysis 12 Core Analysis 6 Recoil Reduction 4 Particle Charging 30 Kinecelleration 40 Defensive Hacking 14 Relay Coupler Types 7 Relay Coupler Value 220 Authchip Count 2 Trap Extractor Capacity 8 Item Schematics ----------------- Powered Armor | -8/Materials | Scanalyzed Imp. Remote Datajack | -7/Factory | Scanalyzed Assault Drone Bay | -5/Zhirov | Free Exp. Heat Sink | -5/Zhirov | Free Exp. Optical Array | -5/Zhirov | Free Imp. Arc Thrower | -5/Zhirov | Free Robot Schematics ------------------ M-13 Machinist | -10/Materials | Hacked Fabricated ------------ Powered Armor | x2 | -7/Factory M-13 Machinist | x1 | -7/Factory Alien Tech Used ----------------- Integrated Reactor Transdimensional Reconstructor Achievements -------------- 30k Club 40k Club Beloved Generalissimo Infiltrator More Power To You Pwned Turtlemind Challenges ------------ None Game ------ Seed ActiveTechProtomatter Manual? 0 Play Time 06:27:10 Cumulative 108.0 hours Start 2024.08.22 @ 15:42:42 End 2024.08.22 @ 22:28:54 Sessions 1 Manual Loads 0 Difficulty Rogue Special Mode None Game No. 89 Rogue 89 Adventurer 0 Explorer 0 Win Type - Total 0 Types 0/0/0/0/0/0/0/0/0 Lore% 49 Gallery% 58 Achievement% 47 Wizard Run 0 Options --------- Layout 2 ASCII 0 Keyboard 1 Movement Vi Keybinds 0 Fullscreen 1 Font 32/SmallcapsGlow Map View 77x44 Zoom Use 0% Tactical HUD 1 Map Filters NONE Filters NONE Steam 1 RUN: abc73334-f44e-425b-a90c-f40ecde62ff6